Service area,Service sub division,TVBC Service,Expense type,Detailed expense type,TVBC account code,Date Paid,Transaction Reference,Nett Value,Supplier Name
Central Services to the Public,Management & Support Services,Estates and Economic Development ,Premises related Expenditure,Energy Costs,Gas,01/10/2015,165208,-1508.83,Total Gas & Power Ltd
Central Services to the Public,Management & Support Services,Estates and Economic Development ,Premises related Expenditure,Energy Costs,Gas,01/10/2015,165204,-1208.93,Total Gas & Power Ltd
Environmental & Regulatory,Waste management,Environmental,Employees,Indirect Employee Expenses,Agency Staff - Waged Posts,01/10/2015,164994,-448.5,Employment Partners Ltd
Central Services to the Public,Management & Support Services,Estates and Economic Development ,Supplies & Services,"Equipment, Furniture & Materials",Equipment Hire,22/10/2015,165818,-423.58,Crown Water & Coffee
Planning & Development,Community Development,Community and Leisure ,Supplies & Services,Grants & Subscriptions,Grants,21/10/2015,166928,500,Romsey Riverwalk Restoration
Planning & Development,Development Control,Planning & Building,Supplies & Services,Miscellaneous Expenses,Vehicle insurance claims,07/10/2015,165425,500,Bodyshop24
Planning & Development,Economic Development,Estates and Economic Development ,Supplies & Services,Grants & Subscriptions,Grants,07/10/2015,165894,500,The Artroom
Planning & Development,Economic Development,Estates and Economic Development ,Supplies & Services,Grants & Subscriptions,Grants,28/10/2015,167394,500,Neo Media Signage Ltd
Cultural & Related,Culture & Heritage,Community and Leisure ,Supplies & Services,Miscellaneous Expenses,Booking Of Acts,29/10/2015,166119,500,Spiers & Boden
Environmental & Regulatory,Street Cleansing (not chargeable to Highways),Environmental,Supplies & Services,Services,Insurance excess,22/10/2015,166899,500,Johnston Sweepers Ltd
Cultural & Related,Open Spaces,Environmental,Supplies & Services,Communications & Computing,Mobile Telephone Charges,29/10/2015,166930,159.31,Vodafone Limited
Environmental & Regulatory,Street Cleansing (not chargeable to Highways),Environmental,Supplies & Services,Communications & Computing,Mobile Telephone Charges,29/10/2015,166930,122.5,Vodafone Limited
Environmental & Regulatory,Waste management,Environmental,Supplies & Services,Communications & Computing,Mobile Telephone Charges,29/10/2015,166930,90.95,Vodafone Limited
Central Services to the Public,Management & Support Services,Environmental,Supplies & Services,Communications & Computing,Mobile Telephone Charges,29/10/2015,166930,26.85,Vodafone Limited
Central Services to the Public,Management & Support Services,Environmental,Supplies & Services,Communications & Computing,Mobile Telephone Charges,29/10/2015,166930,19.92,Vodafone Limited
Planning & Development,Planning Policy,Plan Pol & Transport,Supplies & Services,Communications & Computing,Hardware Maintenance,01/10/2015,165245,420,Printmax
Central Services to the Public,Elections,Legal & Democratic,Supplies & Services,"Printing, Stationery & General Office Expenses",Postage Costs,29/10/2015,167312,428.53,Financial Data Management Plc
Environmental & Regulatory,Waste management,Environmental,Transport Related Expenditure,Direct Transport Costs,Repair Materials,15/10/2015,165875,431.83,Dennis Eagle Ltd
Cultural & Related,Culture & Heritage,Community and Leisure ,Supplies & Services,Catering,Non-Contract Catering,22/10/2015,165022,436.92,Carlsberg Uk Ltd
Cultural & Related,Open Spaces,Environmental,Transport Related Expenditure,Direct Transport Costs,Petrol,08/10/2015,165810,436.94,Fuel Card Services Ltd
Central Services to the Public,Management & Support Services,Chief Executive's,Supplies & Services,Services,Training Courses,29/10/2015,167519,439,Benchmark Business Training Ltd
Cultural & Related,Open Spaces,Environmental,Supplies & Services,Miscellaneous Expenses,Replace Damaged Cable,21/10/2015,166919,440,Hcc Processing Centre
Cultural & Related,Open Spaces,Environmental,Transport Related Expenditure,Direct Transport Costs,Petrol,01/10/2015,165025,445.85,Fuel Card Services Ltd
Cultural & Related,Open Spaces,Environmental,Supplies & Services,Miscellaneous Expenses,Waste Collection,29/10/2015,165817,448.76,Raymond Brown Minerals & Recycling Ltd
Environmental & Regulatory,Regulatory Services,Housing and Environmental Health ,Supplies & Services,Miscellaneous Expenses,Promotions / Special Events,01/10/2015,165200,450,The Environment Centre
External Trading Accounts,Industrial Estates,Estates and Economic Development ,Premises related Expenditure,Repairs Alterations & Maintenance of Buildings,Planned Maintenance - Non Est,29/10/2015,167475,100,Alarms & Electrical (Devizes) Ltd
Central Services to the Public,Management & Support Services,Estates and Economic Development ,Third Party Payments,Other Establishments,Private Contractors,29/10/2015,167475,350,Alarms & Electrical (Devizes) Ltd
Cultural & Related,Culture & Heritage,Community and Leisure ,Supplies & Services,Catering,Non-Contract Catering,29/10/2015,166784,459.8,Carlsberg Uk Ltd
Central Services to the Public,Management & Support Services,Environmental,Supplies & Services,"Clothes, Uniforms & Laundry",Clothing + Uniforms,22/10/2015,166350,460.35,Arco Ltd
"Highways, Roads & Transport",Highways and roads - maintenance,Plan Pol & Transport,Supplies & Services,"Printing, Stationery & General Office Expenses",Photocopying Costs,29/10/2015,167353,467.35,Ricoh Uk Ltd
Environmental & Regulatory,Regulatory Services,Estates and Economic Development ,Supplies & Services,"Equipment, Furniture & Materials",Purchase Equip + Materials,29/10/2015,167530,482.8,Whiffaway Ltd
Cultural & Related,Open Spaces,Environmental,Transport Related Expenditure,Contract Hire and Operating Leases,Vehicles-Hired\Leased,29/10/2015,167007,484,T H White Ltd
Central Services to the Public,Management & Support Services,Estates and Economic Development ,Premises related Expenditure,Repairs Alterations & Maintenance of Buildings,Building Maint - Non Estates,29/10/2015,167543,487.5,Vp Bastion Limited
Central Services to the Public,Management & Support Services,HR Services,Supplies & Services,Services,Medical Fees,01/10/2015,164202,585,The Space To Be
Central Services to the Public,Management & Support Services,HR Services,Supplies & Services,Services,Medical Fees,15/10/2015,166178,585,The Space To Be
Cultural & Related,Culture & Heritage,Estates and Economic Development ,Premises related Expenditure,Water Services,Water And Sewerage Charges,08/10/2015,165933,587.93,Southern Water
Central Services to the Public,Management & Support Services,Environmental,Supplies & Services,"Printing, Stationery & General Office Expenses",Stationery,08/10/2015,165705,317.95,Banner Business Services Ltd
Central Services to the Public,Management & Support Services,Environmental,Supplies & Services,"Printing, Stationery & General Office Expenses",Print Consumables,08/10/2015,165705,121.29,Banner Business Services Ltd
Central Services to the Public,Management & Support Services,Environmental,Supplies & Services,Catering,Catering,08/10/2015,165705,56.56,Banner Business Services Ltd
Central Services to the Public,Management & Support Services,HR Services,Supplies & Services,Services,Training Courses,29/10/2015,167026,499,Cipd Enterprises Ltd
Central Services to the Public,Local Tax Collection,Revenues,Supplies & Services,"Printing, Stationery & General Office Expenses",Postage Costs,29/10/2015,167354,13.95,Royal Mail
Central Services to the Public,Local Tax Collection,Revenues,Supplies & Services,"Printing, Stationery & General Office Expenses",Postage Costs,29/10/2015,167354,251.33,Royal Mail
Housing Services,Housing Benefits ,Revenues,Supplies & Services,"Printing, Stationery & General Office Expenses",Postage Costs,29/10/2015,167354,117.46,Royal Mail
Central Services to the Public,Local Tax Collection,Revenues,Supplies & Services,"Printing, Stationery & General Office Expenses",Postage Costs,29/10/2015,167354,117.47,Royal Mail
External Trading Accounts,Industrial Estates,Estates and Economic Development ,Premises related Expenditure,Repairs Alterations & Maintenance of Buildings,Building Maint - Non Estates,01/10/2015,165310,500,The Genesis Design Studio Ltd
Planning & Development,Economic Development,Estates and Economic Development ,Supplies & Services,Services,Training Courses,08/10/2015,165809,600,Personal data - Data Protection Act 1998
Central Services to the Public,Management & Support Services,Housing and Environmental Health ,Supplies & Services,"Printing, Stationery & General Office Expenses",Photocopying Costs,08/10/2015,164780,505.92,Ricoh Uk Ltd
Planning & Development,Development Control,Planning & Building,Supplies & Services,Services,Project Consultancy - Policy,29/10/2015,166371,518.75,Reading Agricultural Consultants Ltd
Cultural & Related,Culture & Heritage,Community and Leisure ,Supplies & Services,Miscellaneous Expenses,Booking Of Acts,08/10/2015,165709,521.34,Ckp Ltd
Central Services to the Public,Management & Support Services,Finance,Employees,Indirect Employee Expenses,Temporary Staff,29/10/2015,166795,521.4,Butler Rose
Central Services to the Public,Management & Support Services,Finance,Employees,Indirect Employee Expenses,Agency Staff - Waged Posts,15/10/2015,165819,521.4,Butler Rose
Central Services to the Public,Management & Support Services,Finance,Employees,Indirect Employee Expenses,Agency Staff - Waged Posts,22/10/2015,166176,521.4,Butler Rose
Central Services to the Public,Management & Support Services,Finance,Employees,Indirect Employee Expenses,Agency Staff - Waged Posts,29/10/2015,167499,521.4,Butler Rose
External Trading Accounts,Industrial Estates,Estates and Economic Development ,Supplies & Services,Miscellaneous Expenses,Waste Collection,29/10/2015,167453,521.55,Basingstoke Skip Hire & Sthrn Waste Mgt Ltd
Environmental & Regulatory,Waste management,Environmental,Transport Related Expenditure,Direct Transport Costs,Repair Materials,22/10/2015,166547,529.38,Adams Morey Ltd
Environmental & Regulatory,Street Cleansing (not chargeable to Highways),Environmental,Transport Related Expenditure,Direct Transport Costs,Repair Materials,08/10/2015,165724,132.5,Adams Morey Ltd
Environmental & Regulatory,Waste management,Environmental,Transport Related Expenditure,Direct Transport Costs,Repair Materials,08/10/2015,165724,397.5,Adams Morey Ltd
Planning & Development,Development Control,Planning & Building,Supplies & Services,Communications & Computing,Hardware Maintenance,29/10/2015,167023,534,Idox Software Ltd
Central Services to the Public,Management & Support Services,Estates and Economic Development ,Third Party Payments,Other Establishments,Private Contractors,08/10/2015,165928,540,Gibson & Co Ceilings
Cultural & Related,Culture & Heritage,Community and Leisure ,Supplies & Services,Miscellaneous Expenses,Booking Of Acts,22/10/2015,166557,650,Peaceful Lion Productions
Cultural & Related,Culture & Heritage,Community and Leisure ,Supplies & Services,Miscellaneous Expenses,Booking Of Acts,01/10/2015,165230,650,Midnight Mango Ltd
Central Services to the Public,Management & Support Services,Environmental,Supplies & Services,"Clothes, Uniforms & Laundry",Clothing + Uniforms,22/10/2015,166354,544.11,Arco Ltd
Central Services to the Public,Management & Support Services,Estates and Economic Development ,Supplies & Services,"Equipment, Furniture & Materials",Equipment Hire,29/10/2015,167452,550,Hampshire Plant & Access Limited
Central Services to the Public,Management & Support Services,Estates and Economic Development ,Third Party Payments,Other Establishments,Private Contractors,29/10/2015,167196,550,Fabtech Engineering Lted
Central Services to the Public,Management & Support Services,Estates and Economic Development ,Third Party Payments,Other Establishments,Private Contractors,15/10/2015,166139,550.75,Options Flooring Ltd
Cultural & Related,Recreation & Sport,Community and Leisure ,Premises related Expenditure,Grounds Maintenance Costs,Gm - Additional Works,08/10/2015,165698,376.96,Banner Business Services Ltd
Central Services to the Public,Management & Support Services,Community and Leisure ,Supplies & Services,"Printing, Stationery & General Office Expenses",Stationery,08/10/2015,165698,176.31,Banner Business Services Ltd
Planning & Development,Economic Development,Estates and Economic Development ,Supplies & Services,Services,Training Courses,29/10/2015,167316,555,Andover Handyman Services
Central Services to the Public,Management & Support Services,Estates and Economic Development ,Premises related Expenditure,Repairs Alterations & Maintenance of Buildings,Planned Maintenance - Non Est,15/10/2015,166195,558.29,Btu Installation & Maintenance Ltd
Central Services to the Public,Local Tax Collection,Revenues,Supplies & Services,Services,Professional Fees,01/10/2015,165429,361,Ross & Roberts
Central Services to the Public,Management & Support Services,Estates and Economic Development ,Supplies & Services,"Equipment, Furniture & Materials",Purchase Equip + Materials,29/10/2015,167335,561.48,Cjs Portsmouth Ltd
Central Services to the Public,Local Tax Collection,Revenues,Supplies & Services,"Equipment, Furniture & Materials",Purchase Furniture,08/10/2015,165696,108.97,Banner Business Services Ltd
Central Services to the Public,Local Tax Collection,Revenues,Supplies & Services,"Printing, Stationery & General Office Expenses",Stationery,08/10/2015,165696,24.34,Banner Business Services Ltd
Central Services to the Public,Local Tax Collection,Revenues,Supplies & Services,"Equipment, Furniture & Materials",Purchase Furniture,08/10/2015,165696,254.25,Banner Business Services Ltd
Central Services to the Public,Local Tax Collection,Revenues,Supplies & Services,"Printing, Stationery & General Office Expenses",Stationery,08/10/2015,165696,68.8,Banner Business Services Ltd
Housing Services,Housing Benefits ,Revenues,Supplies & Services,"Printing, Stationery & General Office Expenses",Stationery,08/10/2015,165696,53.84,Banner Business Services Ltd
Central Services to the Public,Local Tax Collection,Revenues,Supplies & Services,"Printing, Stationery & General Office Expenses",Stationery,08/10/2015,165696,53.84,Banner Business Services Ltd
Environmental & Regulatory,Regulatory Services,Housing and Environmental Health ,Supplies & Services,Grants and subscriptions,Capital Grants,29/10/2015,167515,680,Epw Construction
Central Services to the Public,Management & Support Services,Finance,Supplies & Services,"Printing, Stationery & General Office Expenses",Postage Costs,08/10/2015,165968,17.1,Royal Mail
Planning & Development,Development Control,Planning & Building,Supplies & Services,"Printing, Stationery & General Office Expenses",Postage Costs,08/10/2015,165968,108.84,Royal Mail
Central Services,Corporate & Democratic Core,Corporate & Democratic,Supplies & Services,"Printing, Stationery & General Office Expenses",Postage Costs,08/10/2015,165968,440.89,Royal Mail
Cultural & Related,Recreation & Sport,Community and Leisure ,Premises related Expenditure,Repairs Alterations & Maintenance of Buildings,Building Maint - Non Estates,15/10/2015,166162,571.78,Btu Installation & Maintenance Ltd
Environmental & Regulatory,Regulatory Services,Estates and Economic Development ,Premises related Expenditure,Water Services,Water And Sewerage Charges,08/10/2015,165934,687.34,Southern Water
Planning & Development,Community Development,Community and Leisure ,Supplies & Services,Grants & Subscriptions,Grants,21/10/2015,166929,693,St Marys Lunch Club
Central Services to the Public,Management & Support Services,Estates and Economic Development ,Supplies & Services,"Printing, Stationery & General Office Expenses",Stationery,22/10/2015,165701,578.67,Banner Business Services Ltd
Cultural & Related,Open Spaces,Environmental,Third Party Payments,Other Establishments,Private Contractors,01/10/2015,165316,697,Ivan Gibson Agricultural Contractor
Cultural & Related,Open Spaces,Environmental,Third Party Payments,Other Establishments,Private Contractors,15/10/2015,166551,697,Ivan Gibson Agricultural Contractor
Central Services to the Public,Management & Support Services,Environmental,Supplies & Services,"Clothes, Uniforms & Laundry",Clothing + Uniforms,22/10/2015,166345,583.15,Arco Ltd
Cultural & Related,Culture & Heritage,Community and Leisure ,Supplies & Services,Miscellaneous Expenses,Booking Of Acts,22/10/2015,167030,700,Personal data - Data Protection Act 1998
Central Services to the Public,Management & Support Services,Estates and Economic Development ,Supplies & Services,Services,Training Courses,15/10/2015,166197,585,Hss Training
Central Services to the Public,Local Tax Collection,Revenues,Supplies & Services,Communications & Computing,Software Maintenance,22/10/2015,166405,150,Ncc Services Limited
Central Services to the Public,Local Tax Collection,Revenues,Supplies & Services,Communications & Computing,Software Maintenance,22/10/2015,166405,150,Ncc Services Limited
Housing Services,Housing Benefits ,Revenues,Supplies & Services,Communications & Computing,Software Maintenance,22/10/2015,166405,150,Ncc Services Limited
Central Services to the Public,Local Tax Collection,Revenues,Supplies & Services,Communications & Computing,Software Maintenance,22/10/2015,166405,150,Ncc Services Limited
Cultural & Related,Recreation & Sport,Community and Leisure ,Supplies & Services,"Equipment, Furniture & Materials",Purchase Equip + Materials,08/10/2015,163206,192,Roland Security Llp
Cultural & Related,Open Spaces,Community and Leisure ,Supplies & Services,"Equipment, Furniture & Materials",Purchase Equip + Materials,08/10/2015,163206,414,Roland Security Llp
Central Services to the Public,Management & Support Services,Estates and Economic Development ,Premises related Expenditure,Energy Costs,Gas,22/10/2015,166759,609.48,Total Gas & Power Ltd
Planning & Development,Development Control,Planning & Building,Supplies & Services,"Printing, Stationery & General Office Expenses",Written Media,15/10/2015,165871,735,Hammicks Legal Information Services
Cultural & Related,Culture & Heritage,Community and Leisure ,Supplies & Services,Catering,Non-Contract Catering,22/10/2015,165715,615.39,Carlsberg Uk Ltd
Planning & Development,Planning Policy,Plan Pol & Transport,Supplies & Services,Services,Training Courses,01/10/2015,165256,621,Place Studio Ltd
Environmental & Regulatory,Waste management,Environmental,Employees,Indirect Employee Expenses,Agency Staff - Waged Posts,01/10/2015,162245,624,Employment Partners Ltd
Central Services to the Public,Management & Support Services,Environmental,Supplies & Services,Communications & Computing,Computer Software,08/10/2015,165972,750,Tecnodiagnostics
Central Services to the Public,Management & Support Services,IT,Supplies & Services,Communications & Computing,Computer Hardware,22/10/2015,163034,633.5,Essentra Packaging & Security Ltd
Central Services to the Public,Management & Support Services,IT,Supplies & Services,Communications & Computing,Computer Hardware,08/10/2015,165418,178.42,Empowered Sms Ltd T/A Neptune
Central Services to the Public,Management & Support Services,IT,Supplies & Services,Communications & Computing,Hardware Maintenance,08/10/2015,165418,461.81,Empowered Sms Ltd T/A Neptune
Planning & Development,Development Control,Planning & Building,Employees,Indirect Employee Expenses,Temporary Staff,01/10/2015,165290,642.6,Matchtech Group Uk Ltd
Planning & Development,Development Control,Planning & Building,Employees,Indirect Employee Expenses,Temporary Staff,22/10/2015,166403,642.6,Matchtech Group Uk Ltd
Planning & Development,Development Control,Planning & Building,Employees,Indirect Employee Expenses,Temporary Staff,29/10/2015,165873,642.6,Matchtech Group Uk Ltd
Cultural & Related,Open Spaces,Environmental,Transport Related Expenditure,Direct Transport Costs,Repair Materials,22/10/2015,166823,642.76,A J & R Scambler &  Sons Ltd
Cultural & Related,Culture & Heritage,Community and Leisure ,Supplies & Services,Miscellaneous Expenses,Promotions / Special Events,15/10/2015,166374,650,Showcase Outdoor Ltd
Environmental & Regulatory,Waste management,Environmental,Transport Related Expenditure,Direct Transport Costs,External Garages,01/10/2015,165024,573.75,Terberg Matec Uk Limited
Environmental & Regulatory,Waste management,Environmental,Transport Related Expenditure,Direct Transport Costs,Repair Materials,01/10/2015,165024,81.15,Terberg Matec Uk Limited
Central Services to the Public,Management & Support Services,Plan Pol & Transport,Supplies & Services,"Equipment, Furniture & Materials",Purchase Equip + Materials,01/10/2015,163991,658.81,Sse Contracting Ltd
Central Services to the Public,Management & Support Services,Estates and Economic Development ,Third Party Payments,Other Establishments,Private Contractors,15/10/2015,166143,660,Doorgear Limited
Central Services to the Public,Management & Support Services,IT,Supplies & Services,"Equipment, Furniture & Materials",Equipment Hire,29/10/2015,166532,551.25,Xerox (Uk) Ltd
Central Services to the Public,Management & Support Services,IT,Supplies & Services,"Equipment, Furniture & Materials",Purchase Equip + Materials,29/10/2015,166532,115.59,Xerox (Uk) Ltd
Environmental & Regulatory,Regulatory Services,Housing and Environmental Health ,Supplies & Services,"Equipment, Furniture & Materials",Purchase Equip + Materials,08/10/2015,161856,666.92,Pelsis Ltd
Environmental & Regulatory,Waste management,Environmental,Employees,Indirect Employee Expenses,Agency Staff - Waged Posts,15/10/2015,166399,667.88,Employment Partners Ltd
Environmental & Regulatory,Waste management,Environmental,Employees,Indirect Employee Expenses,Agency Staff - Waged Posts,01/10/2015,165252,672.75,Employment Partners Ltd
Cultural & Related,Open Spaces,Environmental,Supplies & Services,Services,Training Courses,29/10/2015,167454,206.48,Nationwide Training Limited
Environmental & Regulatory,Street Cleansing (not chargeable to Highways),Environmental,Supplies & Services,Services,Training Courses,29/10/2015,167454,206.47,Nationwide Training Limited
Environmental & Regulatory,Waste management,Environmental,Supplies & Services,Services,Training Courses,29/10/2015,167454,206.48,Nationwide Training Limited
Central Services to the Public,Management & Support Services,Environmental,Supplies & Services,Services,Training Courses,29/10/2015,167454,68.82,Nationwide Training Limited
Central Services to the Public,Management & Support Services,Estates and Economic Development ,Supplies & Services,Services,Training Courses,29/10/2015,166196,695,Hss Training
Central Services to the Public,Management & Support Services,Estates and Economic Development ,Supplies & Services,Miscellaneous Expenses,Health And Safety,29/10/2015,167344,382.92,Invicta Lifeline Ltd
Cultural & Related,Open Spaces,Environmental,Supplies & Services,Miscellaneous Expenses,Health And Safety,29/10/2015,167344,319.08,Invicta Lifeline Ltd
Cultural & Related,Open Spaces,Community and Leisure ,Premises related Expenditure,Grounds Maintenance Costs,Gm - Additional Works,01/10/2015,165247,704,Kingcombe Aquacare Ltd
Cultural & Related,Open Spaces,Environmental,Supplies & Services,"Equipment, Furniture & Materials",Purchases for playgrounds,29/10/2015,161173,706.25,Gb Sport & Leisure Uk Ltd
Cultural & Related,Culture & Heritage,Community and Leisure ,Supplies & Services,Miscellaneous Expenses,Booking Of Acts,01/10/2015,165288,722.66,Neil Sands Productions
Cultural & Related,Open Spaces,Environmental,Supplies & Services,"Equipment, Furniture & Materials",Purchase Equip + Materials,29/10/2015,166894,725.99,Bishop Sports & Leisure
Central Services to the Public,Management & Support Services,IT,Supplies & Services,Communications & Computing,Hardware Maintenance,22/10/2015,166171,740.62,Quadrant Security Group Ltd
Central Services to the Public,Management & Support Services,IT,Supplies & Services,Communications & Computing,Hardware Maintenance,22/10/2015,166913,740.62,Quadrant Security Group Ltd
Central Services to the Public,Management & Support Services,Environmental,Supplies & Services,"Equipment, Furniture & Materials",Maintenance Equip + Materials,22/10/2015,166169,744.03,Guaranteed Tool Company Ltd
Central Services to the Public,Management & Support Services,IT,Supplies & Services,"Equipment, Furniture & Materials",Purchase Equip + Materials,22/10/2015,166191,749.09,Xerox (Uk) Ltd
Central Services to the Public,Management & Support Services,Community and Leisure ,Supplies & Services,"Printing, Stationery & General Office Expenses",Photocopying Costs,01/10/2015,164778,749.86,Ricoh Uk Ltd
Planning & Development,Planning Policy,Plan Pol & Transport,Supplies & Services,Communications & Computing,Software Maintenance,08/10/2015,165421,750,Basemap Limited
Central Services to the Public,Management & Support Services,Legal & Democratic,Supplies & Services,"Printing, Stationery & General Office Expenses",Photocopying Costs,22/10/2015,166750,753.04,Ricoh Uk Ltd
Cultural & Related,Culture & Heritage,Community and Leisure ,Supplies & Services,Miscellaneous Expenses,Booking Of Acts,22/10/2015,167031,914.66,Purple Zeppelin
Central Services to the Public,Management & Support Services,Finance,Supplies & Services,"Printing, Stationery & General Office Expenses",Postage Costs,08/10/2015,165471,767.08,Whistl South West Ltd
Central Services to the Public,Local Tax Collection,Revenues,Supplies & Services,"Printing, Stationery & General Office Expenses",External Printing,29/10/2015,166888,541.62,Hound Envelopes Limited
Housing Services,Housing Benefits ,Revenues,Supplies & Services,"Printing, Stationery & General Office Expenses",External Printing,29/10/2015,166888,228.65,Hound Envelopes Limited
Cultural & Related,Culture & Heritage,Community and Leisure ,Supplies & Services,"Equipment, Furniture & Materials",Purchase Equip + Materials,08/10/2015,165400,784.6,Peter Cox (Catering Equipment) Ltd
External Trading Accounts,Industrial Estates,Estates and Economic Development ,Supplies & Services,Communications & Computing,Land Line Telephone Charges,01/10/2015,165416,27.1,Virgin Media Payments Ltd
Cultural & Related,Culture & Heritage,Estates and Economic Development ,Supplies & Services,Communications & Computing,Land Line Telephone Charges,01/10/2015,165416,39.23,Virgin Media Payments Ltd
Cultural & Related,Culture & Heritage,Estates and Economic Development ,Supplies & Services,Communications & Computing,Land Line Telephone Charges,01/10/2015,165416,39.06,Virgin Media Payments Ltd
Central Services to the Public,Management & Support Services,IT,Supplies & Services,Communications & Computing,Communication Links,01/10/2015,165416,26,Virgin Media Payments Ltd
Central Services to the Public,Management & Support Services,IT,Supplies & Services,Communications & Computing,Communication Links,01/10/2015,165416,67,Virgin Media Payments Ltd
Cultural & Related,Recreation & Sport,Community and Leisure ,Supplies & Services,Communications & Computing,Land Line Telephone Charges,01/10/2015,165416,26,Virgin Media Payments Ltd
Cultural & Related,Recreation & Sport,Community and Leisure ,Supplies & Services,Communications & Computing,Land Line Telephone Charges,01/10/2015,165416,13.64,Virgin Media Payments Ltd
Cultural & Related,Recreation & Sport,Community and Leisure ,Supplies & Services,Communications & Computing,Land Line Telephone Charges,01/10/2015,165416,13,Virgin Media Payments Ltd
Cultural & Related,Culture & Heritage,Community and Leisure ,Supplies & Services,Communications & Computing,Communication Links,01/10/2015,165416,341.52,Virgin Media Payments Ltd
"Highways, Roads & Transport",Parking Services,Plan Pol & Transport,Supplies & Services,Communications & Computing,Alarm Lines,01/10/2015,165416,37.11,Virgin Media Payments Ltd
Central Services to the Public,Management & Support Services,Environmental,Supplies & Services,Communications & Computing,Land Line Telephone Charges,01/10/2015,165416,67.81,Virgin Media Payments Ltd
Central Services to the Public,Emergency Planning,Corporate & Democratic,Supplies & Services,Communications & Computing,Land Line Telephone Charges,01/10/2015,165416,91,Virgin Media Payments Ltd
"Highways, Roads & Transport",Parking Services,Plan Pol & Transport,Supplies & Services,"Equipment, Furniture & Materials",Purchase Equip + Materials,22/10/2015,163205,793.12,Cale Briparc Ltd
Central Services to the Public,Management & Support Services,Estates and Economic Development ,Third Party Payments,Other Establishments,Private Contractors,15/10/2015,166161,795,Doorgear Limited
Planning & Development,Development Control,Planning & Building,Supplies & Services,Services,Project Consultancy - Policy,08/10/2015,165767,795,Reading Agricultural Consultants Ltd
"Highways, Roads & Transport",Highways and roads - maintenance,Plan Pol & Transport,Supplies & Services,"Equipment, Furniture & Materials",Purchase Equip + Materials,29/10/2015,159578,799,Signway Supplies (Datchet Ltd)
Cultural & Related,Culture & Heritage,Community and Leisure ,Supplies & Services,Miscellaneous Expenses,Booking Of Acts,15/10/2015,166177,800,European Arts Company Ltd
Cultural & Related,Open Spaces,Environmental,Employees,Indirect Employee Expenses,Agency Staff - Waged Posts,22/10/2015,166805,804.75,365 Supply Ltd
Cultural & Related,Open Spaces,Environmental,Third Party Payments,Other Establishments,Private Contractors,15/10/2015,166133,966.31,Ivan Gibson Agricultural Contractor
Central Services to the Public,Management & Support Services,Estates and Economic Development ,Supplies & Services,"Equipment, Furniture & Materials",Purchase Materials (Job Cost),29/10/2015,167358,808.61,Wolseley Uk Limited
Central Services to the Public,Management & Support Services,IT,Supplies & Services,Communications & Computing,Land Line Telephone Charges,22/10/2015,166388,821.35,Virgin Media Payments Ltd
Central Services to the Public,Management & Support Services,Estates and Economic Development ,Supplies & Services,"Equipment, Furniture & Materials",Equipment Hire,22/10/2015,165769,825,Crown Water & Coffee
Central Services to the Public,Elections,Legal & Democratic,Supplies & Services,"Printing, Stationery & General Office Expenses",Written Media,29/10/2015,167210,997,Hammicks Legal Information Services
Environmental & Regulatory,Waste management,Environmental,Transport Related Expenditure,Direct Transport Costs,Repair Materials,01/10/2015,165210,232.23,Dennis Eagle Ltd
Central Services to the Public,Management & Support Services,Environmental,Transport Related Expenditure,Direct Transport Costs,Repair Materials,01/10/2015,165210,601.16,Dennis Eagle Ltd
Cultural & Related,Culture & Heritage,Estates and Economic Development ,Premises related Expenditure,Cleaning and domestic supplies,Window Cleaning,08/10/2015,165958,15,Allclean Windows Limited
Central Services to the Public,Management & Support Services,Estates and Economic Development ,Premises related Expenditure,Cleaning and domestic supplies,Window Cleaning,08/10/2015,165958,827,Allclean Windows Limited
Central Services to the Public,Management & Support Services,Estates and Economic Development ,Third Party Payments,Other Establishments,Private Contractors,15/10/2015,165931,845.5,Westlake Asphalt Company Limited
Central Services to the Public,Management & Support Services,Estates and Economic Development ,Supplies & Services,Communications & Computing,Telephone Tracking System,29/10/2015,167016,60,Ctrack Uk Limited
Environmental & Regulatory,Regulatory Services,Estates and Economic Development ,Supplies & Services,Communications & Computing,Telephone Tracking System,29/10/2015,167016,20,Ctrack Uk Limited
Cultural & Related,Open Spaces,Environmental,Supplies & Services,Communications & Computing,Telephone Tracking System,29/10/2015,167016,280,Ctrack Uk Limited
Environmental & Regulatory,Street Cleansing (not chargeable to Highways),Environmental,Supplies & Services,Communications & Computing,Telephone Tracking System,29/10/2015,167016,230,Ctrack Uk Limited
Environmental & Regulatory,Waste management,Environmental,Supplies & Services,Communications & Computing,Telephone Tracking System,29/10/2015,167016,210,Ctrack Uk Limited
Environmental & Regulatory,Waste management,Environmental,Supplies & Services,Communications & Computing,Telephone Tracking System,29/10/2015,167016,20,Ctrack Uk Limited
Central Services to the Public,Management & Support Services,Environmental,Supplies & Services,Communications & Computing,Telephone Tracking System,29/10/2015,167016,30,Ctrack Uk Limited
Environmental & Regulatory,Street Cleansing (not chargeable to Highways),Environmental,Supplies & Services,"Printing, Stationery & General Office Expenses",External Printing,08/10/2015,165803,1027,Hammicks Legal Information Services
Central Services to the Public,Elections,Legal & Democratic,Supplies & Services,Services,Training Courses,22/10/2015,166901,858.12,Winchester City Council
Central Services to the Public,Management & Support Services,Estates and Economic Development ,Third Party Payments,Other Establishments,Private Contractors,15/10/2015,166142,858.5,Temple Ford Design Ltd
Central Services to the Public,Management & Support Services,Estates and Economic Development ,Third Party Payments,Other Establishments,Private Contractors,01/10/2015,165309,864.81,Westgate Construction (Hertford) Ltd
Cultural & Related,Culture & Heritage,Community and Leisure ,Supplies & Services,"Printing, Stationery & General Office Expenses",Licences / Affiliation Fees,01/10/2015,164910,872,Performing Right Society Ltd
Central Services to the Public,Management & Support Services,Finance,Supplies & Services,"Printing, Stationery & General Office Expenses",Postage Costs,22/10/2015,166183,877.86,Whistl South West Ltd
Central Services to the Public,Management & Support Services,Legal & Democratic,Employees,Indirect Employee Expenses,Agency Staff - Waged Posts,29/10/2015,166820,880,Venn Group Ltd
Cultural & Related,Open Spaces,Environmental,Employees,Indirect Employee Expenses,Agency Staff - Waged Posts,29/10/2015,166381,888.01,365 Supply Ltd
Environmental & Regulatory,Regulatory Services,Housing and Environmental Health ,Supplies & Services,Grants & Subscriptions,Subscriptions,08/10/2015,165859,1078,Hammicks Legal Information Services
Cultural & Related,Culture & Heritage,Community and Leisure ,Supplies & Services,Miscellaneous Expenses,Booking Of Acts,15/10/2015,166404,900,Lakin Mccarthy Entertainment Ltd
Cultural & Related,Culture & Heritage,Community and Leisure ,Supplies & Services,Catering,Caf�/ bar consumables,01/10/2015,164799,18.5,Carlsberg Uk Ltd
Cultural & Related,Culture & Heritage,Community and Leisure ,Supplies & Services,Catering,Non-Contract Catering,01/10/2015,164799,897.46,Carlsberg Uk Ltd
Central Services to the Public,Elections,Legal & Democratic,Supplies & Services,"Printing, Stationery & General Office Expenses",Written Media,08/10/2015,165716,1095,Hammicks Legal Information Services
Cultural & Related,Culture & Heritage,Community and Leisure ,Supplies & Services,Catering,Caf�/ bar consumables,15/10/2015,165854,9.25,Carlsberg Uk Ltd
Cultural & Related,Culture & Heritage,Community and Leisure ,Supplies & Services,Catering,Non-Contract Catering,15/10/2015,165854,912.46,Carlsberg Uk Ltd
Cultural & Related,Open Spaces,Environmental,Transport Related Expenditure,Direct Transport Costs,Repair Materials,08/10/2015,165710,924.95,R Hunt (Agricultural Engineers) Ltd
Central Services,Corporate & Democratic Core,Corporate & Democratic,Supplies & Services,Communications & Computing,Land Line Telephone Charges,08/10/2015,165720,936.77,Invicta Lifeline Ltd
Central Services,Corporate & Democratic Core,Corporate & Democratic,Supplies & Services,Communications & Computing,Land Line Telephone Charges,22/10/2015,166230,936.77,Invicta Lifeline Ltd
Environmental & Regulatory,Waste management,Environmental,Employees,Indirect Employee Expenses,Agency Staff - Waged Posts,29/10/2015,167472,946,Abacus Employment Services Ltd
Central Services to the Public,Management & Support Services,Estates and Economic Development ,Premises related Expenditure,Repairs Alterations & Maintenance of Buildings,Building Maint - Non Estates,29/10/2015,167474,950,Alarms & Electrical (Devizes) Ltd
Planning & Development,Economic Development,Estates and Economic Development ,Supplies & Services,Services,Training Courses,28/10/2015,167319,1150,Bowyer Engineering Ltd
Central Services to the Public,Management & Support Services,Finance,Supplies & Services,"Printing, Stationery & General Office Expenses",Postage Costs,08/10/2015,165218,976.7,Whistl South West Ltd
Cultural & Related,Open Spaces,Environmental,Transport Related Expenditure,Direct Transport Costs,External Garages,29/10/2015,167029,288,T H White Ltd
Cultural & Related,Open Spaces,Environmental,Transport Related Expenditure,Direct Transport Costs,Repair Materials,29/10/2015,167029,688.91,T H White Ltd
Central Services to the Public,Management & Support Services,Estates and Economic Development ,Third Party Payments,Other Establishments,Private Contractors,29/10/2015,167533,1002,Waterside Blinds
Environmental & Regulatory,Regulatory Services,Housing and Environmental Health ,Supplies & Services,Grants and subscriptions,Capital Grants,29/10/2015,167516,1204,Liftability Ltd
Environmental & Regulatory,Waste management,Environmental,Transport Related Expenditure,Direct Transport Costs,Repair Materials,22/10/2015,164045,1004.81,Dennis Eagle Ltd
Central Services to the Public,Management & Support Services,Environmental,Transport Related Expenditure,Direct Transport Costs,Oils,01/10/2015,165011,1008.6,Fuchs Lubricants (Uk) Plc
Environmental & Regulatory,Waste management,Environmental,Transport Related Expenditure,Direct Transport Costs,Repair Materials,22/10/2015,165474,961.06,Dennis Eagle Ltd
Central Services to the Public,Management & Support Services,Environmental,Transport Related Expenditure,Direct Transport Costs,Repair Materials,22/10/2015,165474,52.23,Dennis Eagle Ltd
Environmental & Regulatory,Regulatory Services,Housing and Environmental Health ,Supplies & Services,Grants and subscriptions,Capital Grants,08/10/2015,165943,1219,Enham
Environmental & Regulatory,Waste management,Environmental,Employees,Indirect Employee Expenses,Agency Staff - Waged Posts,01/10/2015,165254,1017.56,Abacus Employment Services Ltd
Central Services to the Public,Management & Support Services,Estates and Economic Development ,Premises related Expenditure,Water Services,Water And Sewerage Charges,29/10/2015,167545,1221.68,Southern Water
Cultural & Related,Open Spaces,Environmental,Employees,Indirect Employee Expenses,Agency Staff - Waged Posts,29/10/2015,167352,1026.75,365 Supply Ltd
Cultural & Related,Open Spaces,Community and Leisure ,Supplies & Services,"Equipment, Furniture & Materials",Purchase Equip + Materials,22/10/2015,166380,521.25,Surf & Turf Instant Shelters
Environmental & Regulatory,Community Development,Community and Leisure ,Supplies & Services,"Equipment, Furniture & Materials",Purchase Equip + Materials,22/10/2015,166380,521.25,Surf & Turf Instant Shelters
Cultural & Related,Open Spaces,Environmental,Third Party Payments,Other Establishments,Private Contractors,01/10/2015,165315,1254.82,Ivan Gibson Agricultural Contractor
Cultural & Related,Open Spaces,Environmental,Third Party Payments,Other Establishments,Private Contractors,29/10/2015,167372,1254.82,Ivan Gibson Agricultural Contractor
"Highways, Roads & Transport",Public Transport,Plan Pol & Transport,Third Party Payments,Transport Operators in Respect of Concessionary Fares,Voluntary Orgs Reimbursement,01/10/2015,165495,1255,Romsey Good Neighbours
External Trading Accounts,Industrial Estates,Estates and Economic Development ,Supplies & Services,Services,Professional Fees,08/10/2015,165924,1050,Dlg Architects Llp
"Highways, Roads & Transport",Parking Services,Plan Pol & Transport,Supplies & Services,"Printing, Stationery & General Office Expenses",External Printing,29/10/2015,164807,1052,Liberty Printers Ltd
Central Services to the Public,Management & Support Services,Estates and Economic Development ,Third Party Payments,Other Establishments,Private Contractors,22/10/2015,166361,1065,Pickfords Move Management Ltd
Planning & Development,Economic Development,Estates and Economic Development ,Supplies & Services,Services,Training Courses,15/10/2015,166102,1301,Woosh Washrooms
Central Services to the Public,Management & Support Services,Finance,Supplies & Services,Services,Vat Consultancy,08/10/2015,165428,1100,Lavat Consulting Limited
Cultural & Related,Recreation & Sport,Community and Leisure ,Premises related Expenditure,Repairs Alterations & Maintenance of Buildings,Estates premises costs - AMP,22/10/2015,166373,1101.2,Bishop Sports & Leisure
"Highways, Roads & Transport",Public Transport,Plan Pol & Transport,Third Party Payments,Transport Operators in Respect of Concessionary Fares,Voluntary Orgs Reimbursement,01/10/2015,165211,1329.5,Andover Neighbourcare
Environmental & Regulatory,Waste management,Environmental,Employees,Indirect Employee Expenses,Agency Staff - Waged Posts,01/10/2015,162621,1108.25,Employment Partners Ltd
Environmental & Regulatory,Regulatory Services,Housing and Environmental Health ,Supplies & Services,Grants and subscriptions,Capital Grants,08/10/2015,165938,1347.62,Lifestyle Solutions
Central Services to the Public,Management & Support Services,Revenues,Supplies & Services,Services,Project Consultancy - Systems,01/10/2015,163266,1125,Northgate Public Services Uk Ltd
Central Services to the Public,Management & Support Services,Finance,Supplies & Services,"Printing, Stationery & General Office Expenses",Postage Costs,22/10/2015,166541,1154.7,Whistl South West Ltd
"Highways, Roads & Transport",Public Transport,Plan Pol & Transport,Third Party Payments,Transport Operators in Respect of Concessionary Fares,Voluntary Orgs Reimbursement,22/10/2015,167037,1386.5,Romsey Good Neighbours
Environmental & Regulatory,Waste management,Environmental,Employees,Indirect Employee Expenses,Agency Staff - Waged Posts,22/10/2015,166571,1155.94,Abacus Employment Services Ltd
Environmental & Regulatory,Regulatory Services,Housing and Environmental Health ,Supplies & Services,Grants and subscriptions,Capital Grants,08/10/2015,165939,1397.55,Lifestyle Solutions
Central Services to the Public,Management & Support Services,Legal & Democratic,Supplies & Services,Grants & Subscriptions,Subscriptions,28/10/2015,167190,1408,The Law Society
Environmental & Regulatory,Regulatory Services,Housing and Environmental Health ,Supplies & Services,Grants and subscriptions,Capital Grants,08/10/2015,165950,1425.88,Nhp (Romsey) Ltd
Environmental & Regulatory,Regulatory Services,Housing and Environmental Health ,Supplies & Services,Grants and subscriptions,Capital Grants,29/10/2015,167518,1441.2,G Ash Architects Ltd
Cultural & Related,Culture & Heritage,Community and Leisure ,Supplies & Services,Miscellaneous Expenses,Booking Of Acts,22/10/2015,166567,1217.5,Triangle Productions Ltd
Environmental & Regulatory,Street Cleansing (not chargeable to Highways),Environmental,Supplies & Services,"Equipment, Furniture & Materials",Maintenance Equip + Materials,22/10/2015,166120,1220,Imperial Polythene Products Ltd
Planning & Development,Economic Development,Estates and Economic Development ,Supplies & Services,Services,Training Courses,28/10/2015,167315,1479.16,Bowyer Engineering Ltd
Environmental & Regulatory,Regulatory Services,Housing and Environmental Health ,Supplies & Services,Grants and subscriptions,Capital Grants,01/10/2015,165503,1486,Epw Construction
Central Services to the Public,Elections,Legal & Democratic,Supplies & Services,"Printing, Stationery & General Office Expenses",Postage Costs,01/10/2015,165216,1248.68,Royal Mail
External Trading Accounts,Industrial Estates,Estates and Economic Development ,Third Party Payments,Private contractors,Secondary contract - est,22/10/2015,166200,1255,Signway Supplies (Datchet Ltd)
Central Services to the Public,Management & Support Services,Legal & Democratic,Employees,Indirect Employee Expenses,Agency Staff - Waged Posts,29/10/2015,165222,1260,Venn Group Ltd
Environmental & Regulatory,Regulatory Services,Legal & Democratic,Supplies & Services,Services,Training Courses,22/10/2015,166893,1264.03,Personal data - Data Protection Act 1998
Environmental & Regulatory,Regulatory Services,Housing and Environmental Health ,Supplies & Services,Grants and subscriptions,Capital Grants,08/10/2015,165948,1521.44,Hampshire Mobility Services
Planning & Development,Development Control,Planning & Building,Supplies & Services,"Printing, Stationery & General Office Expenses",Written Media,15/10/2015,165872,1530,Hammicks Legal Information Services
Planning & Development,Planning Policy,Plan Pol & Transport,Supplies & Services,Grants & Subscriptions,Grants,22/10/2015,167001,1538.84,Hampshire County Council
Environmental & Regulatory,Regulatory Services,Housing and Environmental Health ,Supplies & Services,Grants and subscriptions,Capital Grants,01/10/2015,165038,1541,Andover Glass Works Ltd
Central Services to the Public,Management & Support Services,Estates and Economic Development ,Third Party Payments,Other Establishments,Private Contractors,15/10/2015,165244,1286,Andover Glass Works Ltd
Central Services to the Public,Management & Support Services,Legal & Democratic,Employees,Indirect Employee Expenses,Agency Staff - Waged Posts,29/10/2015,165723,1290,Venn Group Ltd
Cultural & Related,Culture & Heritage,Community and Leisure ,Premises related Expenditure,Energy Costs,Electricity,22/10/2015,166776,940.56,Sparsholt College Hampshire
Cultural & Related,Culture & Heritage,Community and Leisure ,Premises related Expenditure,Energy Costs,Gas,22/10/2015,166776,139.78,Sparsholt College Hampshire
Cultural & Related,Culture & Heritage,Community and Leisure ,Premises related Expenditure,Water Services,Water And Sewerage Charges,22/10/2015,166776,254.34,Sparsholt College Hampshire
Central Services to the Public,Local Tax Collection,Revenues,Supplies & Services,Miscellaneous Expenses,All Pay Fees,08/10/2015,165862,1545.6,Allpay Limited
Environmental & Regulatory,Street Cleansing (not chargeable to Highways),Environmental,Supplies & Services,Miscellaneous Expenses,Vehicle insurance claims,14/10/2015,166417,1574,Zurich Municipal
Central Services to the Public,Management & Support Services,Legal & Democratic,Employees,Indirect Employee Expenses,Agency Staff - Waged Posts,29/10/2015,166168,1320,Venn Group Ltd
Planning & Development,Economic Development,Estates and Economic Development ,Supplies & Services,Services,Training Courses,01/10/2015,165257,1600,Perfect Bore Manufacturing Ltd
Central Services to the Public,Management & Support Services,Plan Pol & Transport,Supplies & Services,"Equipment, Furniture & Materials",Purchase Equip + Materials,22/10/2015,166199,1356,Signway Supplies (Datchet Ltd)
Environmental & Regulatory,Waste management,Environmental,Transport Related Expenditure,Direct Transport Costs,Repair Materials,22/10/2015,166946,72.13,Dennis Eagle Ltd
Central Services to the Public,Management & Support Services,Environmental,Transport Related Expenditure,Direct Transport Costs,Repair Materials,22/10/2015,166946,1285,Dennis Eagle Ltd
Central Services,Corporate & Democratic Core,Corporate & Democratic,Supplies & Services,Grants & Subscriptions,Subscriptions,15/10/2015,166158,1665,Eastleigh Borough Council
Environmental & Regulatory,Regulatory Services,Housing and Environmental Health ,Supplies & Services,Grants and subscriptions,Capital Grants,01/10/2015,165037,1680,Andover Glass Works Ltd
Planning & Development,Development Control,Planning & Building,Employees,Indirect Employee Expenses,Temporary Staff,15/10/2015,166160,1435,Oyster Partnership
Cultural & Related,Open Spaces,Environmental,Supplies & Services,"Equipment, Furniture & Materials",Purchase Equip + Materials,29/10/2015,167200,1440,Fleet (Line Markers) Ltd
Central Services,Corporate & Democratic Core,Corporate & Democratic,Supplies & Services,"Equipment, Furniture & Materials",Purchase Equip + Materials,22/10/2015,166376,1460,Shaw & Sons Ltd
Planning & Development,Development Control,Planning & Building,Supplies & Services,Miscellaneous Expenses,Planning Appeal Costs,29/10/2015,166370,1461.4,Reading Agricultural Consultants Ltd
Planning & Development,Community Development,Community and Leisure ,Supplies & Services,Grants & Subscriptions,Grants,07/10/2015,165893,1780,Andover Nepalese Community
"Highways, Roads & Transport",Highways and roads - maintenance,Plan Pol & Transport,Premises related Expenditure,Repairs Alterations & Maintenance of Buildings,Highways Repairs,22/10/2015,164898,1498.26,Irvine Grenson Ltd
Central Services to the Public,Management & Support Services,Estates and Economic Development ,Premises related Expenditure,Repairs Alterations & Maintenance of Buildings,Planned Maintenance - Non Est,15/10/2015,164897,1500,Dunbar And Boardman
Central Services to the Public,Management & Support Services,Estates and Economic Development ,Third Party Payments,Other Establishments,Private Contractors,01/10/2015,164896,1500,Dunbar And Boardman
Environmental & Regulatory,Regulatory Services,Housing and Environmental Health ,Supplies & Services,Grants and subscriptions,Capital Grants,08/10/2015,165941,1806.66,Peter Martin Plumbing & Carpentry
Cultural & Related,Open Spaces,Environmental,Employees,Indirect Employee Expenses,Agency Staff - Waged Posts,29/10/2015,166132,1507.76,365 Supply Ltd
Planning & Development,Development Control,Planning & Building,Employees,Indirect Employee Expenses,Temporary Staff,15/10/2015,166159,1517,Oyster Partnership
Planning & Development,Development Control,Planning & Building,Employees,Indirect Employee Expenses,Temporary Staff,22/10/2015,166763,1517,Oyster Partnership
Planning & Development,Development Control,Planning & Building,Employees,Indirect Employee Expenses,Temporary Staff,29/10/2015,167347,1517,Oyster Partnership
Cultural & Related,Open Spaces,Community and Leisure ,Premises related Expenditure,Grounds Maintenance Costs,Gm - Additional Works,08/10/2015,165867,174,Personal data - Data Protection Act 1998
Cultural & Related,Open Spaces,Community and Leisure ,Premises related Expenditure,Grounds Maintenance Costs,Gm - Additional Works,08/10/2015,165867,1343,Personal data - Data Protection Act 1998
Cultural & Related,Open Spaces,Community and Leisure ,Premises related Expenditure,Grounds Maintenance Costs,Gm - Additional Works,15/10/2015,166121,1850,Greenflints
Cultural & Related,Culture & Heritage,Community and Leisure ,Supplies & Services,Miscellaneous Expenses,Booking Of Acts,15/10/2015,165874,1867.88,Supersonic 70s
Cultural & Related,Recreation & Sport,Community and Leisure ,Supplies & Services,"Equipment, Furniture & Materials",Purchase Equip + Materials,01/10/2015,165407,1556.95,Bishop Sports & Leisure
Central Services to the Public,Local Tax Collection,Revenues,Supplies & Services,Communications & Computing,Software Maintenance,22/10/2015,166914,155.73,Northgate Public Services Uk Ltd
Central Services to the Public,Local Tax Collection,Revenues,Supplies & Services,Communications & Computing,Software Maintenance,22/10/2015,166914,622.93,Northgate Public Services Uk Ltd
Housing Services,Housing Benefits ,Revenues,Supplies & Services,Communications & Computing,Software Maintenance,22/10/2015,166914,389.34,Northgate Public Services Uk Ltd
Central Services to the Public,Local Tax Collection,Revenues,Supplies & Services,Communications & Computing,Software Maintenance,22/10/2015,166914,389.33,Northgate Public Services Uk Ltd
Central Services to the Public,Management & Support Services,Plan Pol & Transport,Premises related Expenditure,Repairs Alterations & Maintenance of Buildings,General Repairs,01/10/2015,163990,1572.66,Sse Contracting Ltd
Central Services to the Public,Management & Support Services,IT,Supplies & Services,Communications & Computing,Software Maintenance,29/10/2015,166826,1586.64,Konica Minolta Business Soltns (Uk) Ltd
Planning & Development,Development Control,Planning & Building,Supplies & Services,Miscellaneous Expenses,Planning Appeal Costs,22/10/2015,167009,1598.35,Appleton Group Bristol
Cultural & Related,Culture & Heritage,Community and Leisure ,Supplies & Services,Miscellaneous Expenses,Booking Of Acts,29/10/2015,167483,1600,Vienna Festival Ballet
Central Services to the Public,Local Tax Collection,Revenues,Supplies & Services,Services,Professional Fees,29/10/2015,167506,1600,Inform Cpi Ltd
Environmental & Regulatory,Regulatory Services,Housing and Environmental Health ,Supplies & Services,Miscellaneous Expenses,Kennel fees,08/10/2015,165747,1620,Newbury Lodge Kennels
Environmental & Regulatory,Street Cleansing (not chargeable to Highways),Environmental,Supplies & Services,"Equipment, Furniture & Materials",Purchase Equip + Materials,29/10/2015,167321,1651.8,Glasdon Uk Ltd
Environmental & Regulatory,Waste management,Environmental,Employees,Indirect Employee Expenses,Agency Staff - Waged Posts,29/10/2015,167451,1656.31,Abacus Employment Services Ltd
Planning & Development,Community Development,Community and Leisure ,Supplies & Services,Grants & Subscriptions,Grants,15/10/2015,166561,2000,Test Valley Arts Foundation
Central Services to the Public,Management & Support Services,Chief Executive's,Supplies & Services,Grants & Subscriptions,Subscriptions,01/10/2015,161244,1666.67,Hampshire County Council
"Highways, Roads & Transport",Parking Services,Plan Pol & Transport,Supplies & Services,Services,Legal Fees,29/10/2015,167036,2000,Hmcs
Environmental & Regulatory,Regulatory Services,Housing and Environmental Health ,Supplies & Services,Grants and subscriptions,Capital Grants,15/10/2015,166555,2054,Prism Medical Uk
Environmental & Regulatory,Waste management,Environmental,Employees,Indirect Employee Expenses,Agency Staff - Waged Posts,29/10/2015,167482,1714.31,Abacus Employment Services Ltd
Central Services to the Public,Management & Support Services,Estates and Economic Development ,Third Party Payments,Other Establishments,Private Contractors,08/10/2015,165962,1742,Alarms & Electrical (Devizes) Ltd
Central Services to the Public,Local Tax Collection,Revenues,Supplies & Services,Services,Professional Fees,01/10/2015,165430,161.6,Ross & Roberts
Cultural & Related,Culture & Heritage,Community and Leisure ,Supplies & Services,Miscellaneous Expenses,Booking Of Acts,22/10/2015,167021,1829.31,Clare Teal
Planning & Development,Development Control,Planning & Building,Supplies & Services,"Printing, Stationery & General Office Expenses",Stationery,08/10/2015,165752,1247.95,Banner Business Services Ltd
Planning & Development,Development Control,Planning & Building,Supplies & Services,"Printing, Stationery & General Office Expenses",Print Consumables,08/10/2015,165752,595.43,Banner Business Services Ltd
Cultural & Related,Tourism,Estates and Economic Development ,Premises related Expenditure,Repairs Alterations & Maintenance of Buildings,Planned Maintenance - Non Est,15/10/2015,166144,19.25,Temple Lifts Ltd
Cultural & Related,Culture & Heritage,Estates and Economic Development ,Premises related Expenditure,Repairs Alterations & Maintenance of Buildings,Planned Maintenance - Non Est,15/10/2015,166144,197.5,Temple Lifts Ltd
Cultural & Related,Culture & Heritage,Estates and Economic Development ,Premises related Expenditure,Repairs Alterations & Maintenance of Buildings,Planned Maintenance - Non Est,15/10/2015,166144,19.25,Temple Lifts Ltd
Central Services to the Public,Management & Support Services,Estates and Economic Development ,Premises related Expenditure,Repairs Alterations & Maintenance of Buildings,Planned Maintenance - Non Est,15/10/2015,166144,790,Temple Lifts Ltd
Cultural & Related,Recreation & Sport,Community and Leisure ,Premises related Expenditure,Repairs Alterations & Maintenance of Buildings,Planned Maintenance - Non Est,15/10/2015,166144,592.5,Temple Lifts Ltd
Cultural & Related,Recreation & Sport,Community and Leisure ,Premises related Expenditure,Repairs Alterations & Maintenance of Buildings,Planned Maintenance - Non Est,15/10/2015,166144,197.5,Temple Lifts Ltd
Cultural & Related,Culture & Heritage,Community and Leisure ,Premises related Expenditure,Repairs Alterations & Maintenance of Buildings,Planned Maintenance - Non Est,15/10/2015,166144,48.45,Temple Lifts Ltd
Central Services to the Public,Management & Support Services,Estates and Economic Development ,Third Party Payments,Other Establishments,Private Contractors,22/10/2015,166134,1899.64,Options Flooring Ltd
Cultural & Related,Culture & Heritage,Community and Leisure ,Supplies & Services,Miscellaneous Expenses,Booking Of Acts,22/10/2015,166902,1907.67,Emma Brunjes Productions Ltd
"Highways, Roads & Transport",Highways and roads - maintenance,Plan Pol & Transport,Premises related Expenditure,Repairs Alterations & Maintenance of Buildings,Highways Repairs,22/10/2015,166205,2000,Purbeck Civil Engineering Limited
Central Services to the Public,Management & Support Services,Estates and Economic Development ,Supplies & Services,"Printing, Stationery & General Office Expenses",Licences / Affiliation Fees,01/10/2015,165492,2016.42,Performing Right Society Ltd
"Highways, Roads & Transport",Parking Services,Plan Pol & Transport,Supplies & Services,"Printing, Stationery & General Office Expenses",External Printing,29/10/2015,165305,2100,Liberty Printers Ltd
Environmental & Regulatory,Regulatory Services,Housing and Environmental Health ,Supplies & Services,Grants and subscriptions,Capital Grants,01/10/2015,165509,2609.82,Aster Communities
Central Services to the Public,Management & Support Services,Environmental,Transport Related Expenditure,Direct Transport Costs,Diesel,22/10/2015,166172,2204.75,Wp Group Limited
Planning & Development,Economic Development,Estates and Economic Development ,Supplies & Services,Services,Training Courses,29/10/2015,167527,2700,Wren Laboratories Ltd
Cultural & Related,Recreation & Sport,Community and Leisure ,Premises related Expenditure,Repairs Alterations & Maintenance of Buildings,Estates premises costs - AMP,01/10/2015,165306,2287.78,Broxap Limited (Stadia Sports )
Central Services to the Public,Management & Support Services,Environmental,Transport Related Expenditure,Direct Transport Costs,Diesel,01/10/2015,165225,2357.72,Wp Group Limited
Cultural & Related,Recreation & Sport,Community and Leisure ,Supplies & Services,Grants and subscriptions,Capital Grants,01/10/2015,165505,2832,Chilworth Village Hall Management Committee
Cultural & Related,Recreation & Sport,Community and Leisure ,Supplies & Services,Grants and subscriptions,Capital Grants,01/10/2015,165507,2851.99,Braishfield Village Hall Management Committee
Environmental & Regulatory,Regulatory Services,Housing and Environmental Health ,Supplies & Services,Grants and subscriptions,Capital Grants,01/10/2015,165508,2899.72,Aster Property
Planning & Development,Economic Development,Estates and Economic Development ,Supplies & Services,Grants & Subscriptions,Grants,08/10/2015,165764,2443.8,Heartflood Ltd
Central Services to the Public,Management & Support Services,Estates and Economic Development ,Third Party Payments,Other Establishments,Private Contractors,29/10/2015,167198,2454.2,Prb Building Services
Planning & Development,Planning Policy,Plan Pol & Transport,Employees,Indirect Employee Expenses,Temporary Staff,14/10/2015,166397,2975.6,T P Marsh
Central Services to the Public,Management & Support Services,IT,Supplies & Services,Communications & Computing,Software Maintenance,29/10/2015,167509,2487.51,Vodafone Cable & Wireless Uk
Planning & Development,Community Development,Community and Leisure ,Supplies & Services,Grants & Subscriptions,Grants,22/10/2015,167034,3000,Age Uk Andover Offices
Planning & Development,Economic Development,Estates and Economic Development ,Supplies & Services,Services,Training Courses,21/10/2015,166552,3000,Andover Town Centre Partnership
Central Services to the Public,Management & Support Services,Environmental,Transport Related Expenditure,Direct Transport Costs,Diesel,08/10/2015,165746,2036.54,Wp Group Limited
Central Services to the Public,Management & Support Services,Environmental,Transport Related Expenditure,Direct Transport Costs,Red Derv,08/10/2015,165746,541.79,Wp Group Limited
Environmental & Regulatory,Regulatory Services,Housing and Environmental Health ,Supplies & Services,Grants and subscriptions,Capital Grants,01/10/2015,165502,3202.25,Westgate Construction (Hertford) Ltd
Central Services to the Public,Management & Support Services,Environmental,Transport Related Expenditure,Direct Transport Costs,Diesel,29/10/2015,167013,2244.07,Wp Group Limited
Central Services to the Public,Management & Support Services,Environmental,Transport Related Expenditure,Direct Transport Costs,Red Derv,29/10/2015,167013,491.52,Wp Group Limited
Environmental & Regulatory,Waste management,Environmental,Supplies & Services,"Equipment, Furniture & Materials",Purchase Equip + Materials,22/10/2015,166364,2680.65,Egbert H Taylor & Co Ltd
External Trading Accounts,Industrial Estates,Estates and Economic Development ,Supplies & Services,"Equipment, Furniture & Materials",Equipment Lease Rentals,15/10/2015,165713,159.11,Woosh Washrooms
Cultural & Related,Tourism,Estates and Economic Development ,Supplies & Services,"Equipment, Furniture & Materials",Equipment Lease Rentals,15/10/2015,165713,13.39,Woosh Washrooms
Cultural & Related,Culture & Heritage,Estates and Economic Development ,Supplies & Services,"Equipment, Furniture & Materials",Equipment Lease Rentals,15/10/2015,165713,51.43,Woosh Washrooms
Central Services to the Public,Management & Support Services,Estates and Economic Development ,Supplies & Services,"Equipment, Furniture & Materials",Equipment Lease Rentals,15/10/2015,165713,1033.96,Woosh Washrooms
Environmental & Regulatory,Regulatory Services,Estates and Economic Development ,Supplies & Services,"Equipment, Furniture & Materials",Equipment Lease Rentals,15/10/2015,165713,1082.09,Woosh Washrooms
Cultural & Related,Recreation & Sport,Community and Leisure ,Supplies & Services,"Equipment, Furniture & Materials",Equipment Lease Rentals,15/10/2015,165713,13.39,Woosh Washrooms
Cultural & Related,Recreation & Sport,Community and Leisure ,Supplies & Services,"Equipment, Furniture & Materials",Equipment Lease Rentals,15/10/2015,165713,197.67,Woosh Washrooms
Cultural & Related,Open Spaces,Community and Leisure ,Supplies & Services,"Equipment, Furniture & Materials",Equipment Lease Rentals,15/10/2015,165713,141.96,Woosh Washrooms
Environmental & Regulatory,Regulatory Services,Housing and Environmental Health ,Supplies & Services,Grants and subscriptions,Capital Grants,22/10/2015,167033,3258.69,Lifestyle Solutions
Cultural & Related,Open Spaces,Community and Leisure ,Premises related Expenditure,Grounds Maintenance Costs,Non Contract Tree Works,15/10/2015,164792,2747.31,Gristwood & Toms Ltd
Environmental & Regulatory,Waste management,Environmental,Transport Related Expenditure,Direct Transport Costs,Repair Materials,22/10/2015,166210,2779.46,Dennis Eagle Ltd
Environmental & Regulatory,Regulatory Services,Housing and Environmental Health ,Supplies & Services,Grants and subscriptions,Capital Grants,15/10/2015,166560,3381.93,P W Jones Ltd
Environmental & Regulatory,Waste management,Environmental,Employees,Indirect Employee Expenses,Agency Staff - Waged Posts,15/10/2015,166385,2822.06,365 Supply Ltd
Environmental & Regulatory,Regulatory Services,Estates and Economic Development ,Premises related Expenditure,Water Services,Water And Sewerage Charges,08/10/2015,165942,3427.52,Southern Water
Environmental & Regulatory,Waste management,Environmental,Employees,Indirect Employee Expenses,Agency Staff - Waged Posts,01/10/2015,165253,2939.57,365 Supply Ltd
Central Services to the Public,Management & Support Services,IT,Supplies & Services,Communications & Computing,Hardware Maintenance,22/10/2015,166807,2956.31,Uninterruptible Power Supplies Ltd
Cultural & Related,Recreation & Sport,Community and Leisure ,Premises related Expenditure,Repairs Alterations & Maintenance of Buildings,Estates premises costs - AMP,15/10/2015,164755,2998,Purbeck Civil Engineering Limited
Central Services to the Public,Management & Support Services,IT,Supplies & Services,Communications & Computing,Computer Hardware,29/10/2015,167468,2500.1,Storm Technologies
Housing Services,Housing Benefits ,Revenues,Supplies & Services,Communications & Computing,Computer Hardware,29/10/2015,167468,434.8,Storm Technologies
Planning & Development,Planning Policy,Plan Pol & Transport,Supplies & Services,Communications & Computing,Computer Hardware,29/10/2015,167468,108.7,Storm Technologies
Cultural & Related,Recreation & Sport,Estates and Economic Development ,Premises related Expenditure,Water Services,Water And Sewerage Charges,08/10/2015,165937,3657.11,Southern Water
Environmental & Regulatory,Regulatory Services,Housing and Environmental Health ,Supplies & Services,Grants and subscriptions,Capital Grants,15/10/2015,166556,3753.36,Spc Bathrooms Ltd
Central Services to the Public,Management & Support Services,Estates and Economic Development ,Premises related Expenditure,Energy Costs,Gas,01/10/2015,165214,3162.86,Total Gas & Power Ltd
Cultural & Related,Culture & Heritage,Community and Leisure ,Supplies & Services,Miscellaneous Expenses,Booking Of Acts,01/10/2015,165026,3211,Sweeney Entertainments
Environmental & Regulatory,Waste management,Environmental,Employees,Indirect Employee Expenses,Agency Staff - Waged Posts,01/10/2015,165248,3227.34,365 Supply Ltd
Cultural & Related,Open Spaces,Environmental,Transport Related Expenditure,Contract Hire and Operating Leases,Vehicles-Hired\Leased,22/10/2015,166536,3303.84,Kgm Ltd
Central Services to the Public,Management & Support Services,Environmental,Transport Related Expenditure,Direct Transport Costs,Diesel,22/10/2015,166785,3337.2,Wp Group Limited
Environmental & Regulatory,Regulatory Services,Housing and Environmental Health ,Supplies & Services,Grants and subscriptions,Capital Grants,29/10/2015,167517,4017.65,Lifestyle Solutions
Environmental & Regulatory,Regulatory Services,Housing and Environmental Health ,Supplies & Services,Grants and subscriptions,Capital Grants,08/10/2015,165936,4028.51,S & J Building Services (Uk) Ltd
Central Services to the Public,Elections,Legal & Democratic,Supplies & Services,Communications & Computing,Computer Software,29/10/2015,166786,3357.3,Electoral Reform Services
Central Services to the Public,Management & Support Services,Revenues,Supplies & Services,Services,Project Consultancy - Systems,01/10/2015,164916,3375,Northgate Public Services Uk Ltd
Central Services to the Public,Management & Support Services,Revenues,Supplies & Services,Communications & Computing,Software Maintenance,22/10/2015,166553,3438,Northgate Public Services Uk Ltd
Central Services to the Public,Management & Support Services,Plan Pol & Transport,Premises related Expenditure,Repairs Alterations & Maintenance of Buildings,General Repairs,01/10/2015,164038,3439.62,Openreach Bt
Environmental & Regulatory,Regulatory Services,Housing and Environmental Health ,Supplies & Services,Grants and subscriptions,Capital Grants,08/10/2015,165946,4128.01,Northfield Property Solutions Ltd
Central Services,Corporate & Democratic Core,Corporate & Democratic,Supplies & Services,Grants & Subscriptions,Subscriptions,01/10/2015,162775,3442.09,Idox Software Ltd
Central Services to the Public,Management & Support Services,Estates and Economic Development ,Third Party Payments,Other Establishments,Private Contractors,29/10/2015,167531,3471.41,New Forest Fencing Ltd
Environmental & Regulatory,Regulatory Services,Housing and Environmental Health ,Supplies & Services,Grants and subscriptions,Capital Grants,15/10/2015,166558,4395,Bentley Mobility Services
Central Services to the Public,Management & Support Services,IT,Supplies & Services,Services,Project Consultancy - Systems,01/10/2015,165420,3675,Randomstorm
"Highways, Roads & Transport",Parking Services,Plan Pol & Transport,Third Party Payments,Private contractors,Main Contractor Costs,01/10/2015,165399,3717,Sjb Floodlighting Ltd
Cultural & Related,Open Spaces,Environmental,Transport Related Expenditure,Direct Transport Costs,External Garages,01/10/2015,165283,1704,T H White Ltd
Cultural & Related,Open Spaces,Environmental,Transport Related Expenditure,Direct Transport Costs,Repair Materials,01/10/2015,165283,2078.76,T H White Ltd
Central Services to the Public,Management & Support Services,Environmental,Transport Related Expenditure,Direct Transport Costs,Diesel,08/10/2015,165722,3528,Wp Group Limited
Central Services to the Public,Management & Support Services,Environmental,Transport Related Expenditure,Direct Transport Costs,Red Derv,08/10/2015,165722,417.4,Wp Group Limited
Cultural & Related,Recreation & Sport,Community and Leisure ,Third Party Payments,Other Establishments,ALC Management Contract-TVL,15/10/2015,165297,3916.67,Valley Leisure Ltd
Cultural & Related,Recreation & Sport,Community and Leisure ,Third Party Payments,Other Establishments,ALC Management Contract-TVL,15/10/2015,166097,3916.67,Valley Leisure Ltd
Cultural & Related,Open Spaces,Community and Leisure ,Supplies & Services,"Equipment, Furniture & Materials",Purchase Equip + Materials,15/10/2015,166181,4000,Lubbe & Sons Ltd
Central Services to the Public,Management & Support Services,Environmental,Transport Related Expenditure,Direct Transport Costs,Diesel,22/10/2015,166890,4016.24,Wp Group Limited
Central Services to the Public,Management & Support Services,Environmental,Transport Related Expenditure,Direct Transport Costs,Diesel,22/10/2015,166182,4066.44,Wp Group Limited
Central Services to the Public,Management & Support Services,Estates and Economic Development ,Third Party Payments,Other Establishments,Private Contractors,22/10/2015,166357,4110.83,Taurus Hampshire
Central Services to the Public,Management & Support Services,Finance,Supplies & Services,"Printing, Stationery & General Office Expenses",Postage Costs,22/10/2015,167040,5000,Neopost Ltd
Central Services to the Public,Management & Support Services,Environmental,Transport Related Expenditure,Direct Transport Costs,Diesel,01/10/2015,165224,4206.89,Wp Group Limited
Central Services to the Public,Management & Support Services,Estates and Economic Development ,Supplies & Services,"Equipment, Furniture & Materials",Purchase Materials (Job Cost),29/10/2015,167357,4311.83,Wolseley Uk Limited
Environmental & Regulatory,Regulatory Services,Housing and Environmental Health ,Supplies & Services,Grants and subscriptions,Capital Grants,15/10/2015,166559,5512.04,J D Codd Ltd
Planning & Development,Planning Policy,Plan Pol & Transport,Supplies & Services,Grants & Subscriptions,Environmental Initiative Grant,15/10/2015,166366,4614,Hampshire County Council
Planning & Development,Development Control,Planning & Building,Supplies & Services,Services,Legal Fees,14/10/2015,166429,4650,Personal data - Data Protection Act 1998
Central Services to the Public,Management & Support Services,Estates and Economic Development ,Third Party Payments,Private contractors,Main Contractor Costs,15/10/2015,166140,4855.35,Btu Installation & Maintenance Ltd
Cultural & Related,Open Spaces,Community and Leisure ,Premises related Expenditure,Grounds Maintenance Costs,Gm - Additional Works,15/10/2015,165749,4867.8,Choice Plants
"Highways, Roads & Transport",Parking Services,Plan Pol & Transport,Supplies & Services,Services,Professional Fees,08/10/2015,165790,4965.13,Keyline Chartered Security Ltd
Central Services to the Public,Management & Support Services,Legal & Democratic,Supplies & Services,Services,Legal Fees,01/10/2015,165479,5112.5,Dac Beachcroft
Cultural & Related,Open Spaces,Community and Leisure ,Premises related Expenditure,Repairs Alterations & Maintenance of Buildings,Estates premises costs - AMP,29/10/2015,166898,5114,Purbeck Civil Engineering Limited
Central Services to the Public,Local Land Charges,Legal & Democratic,Supplies & Services,Miscellaneous Expenses,Land Charges Fees,08/10/2015,165794,6532.5,Hampshire County Council
Environmental & Regulatory,Waste management,Environmental,Supplies & Services,Miscellaneous Expenses,Recycling Bank Emptying,22/10/2015,166367,5821.62,Fcc Recycling (Uk) Ltd
Central Services to the Public,Management & Support Services,Revenues,Supplies & Services,Communications & Computing,Software Maintenance,08/10/2015,165733,6000,Abavus Limited
Planning & Development,Development Control,Planning & Building,Supplies & Services,Miscellaneous Expenses,Planning Appeal Costs,29/10/2015,167541,6181.25,Pro Vision Planning And Design
Central Services to the Public,Elections,Legal & Democratic,Supplies & Services,"Printing, Stationery & General Office Expenses",Postage Costs,01/10/2015,165427,6349,Financial Data Management Plc
Environmental & Regulatory,Regulatory Services,Housing and Environmental Health ,Transport Related Expenditure,Direct Transport Costs,Tyres,22/10/2015,165793,278.49,Ats Euromaster Limited
Cultural & Related,Open Spaces,Environmental,Transport Related Expenditure,Direct Transport Costs,Tyres,22/10/2015,165793,1454.42,Ats Euromaster Limited
Environmental & Regulatory,Street Cleansing (not chargeable to Highways),Environmental,Transport Related Expenditure,Direct Transport Costs,Tyres,22/10/2015,165793,927.78,Ats Euromaster Limited
Environmental & Regulatory,Waste management,Environmental,Transport Related Expenditure,Direct Transport Costs,Tyres,22/10/2015,165793,2992.2,Ats Euromaster Limited
Environmental & Regulatory,Waste management,Environmental,Transport Related Expenditure,Direct Transport Costs,Tyres,22/10/2015,165793,833.85,Ats Euromaster Limited
Central Services to the Public,Management & Support Services,Estates and Economic Development ,Third Party Payments,Other Establishments,Private Contractors,29/10/2015,167197,6525,Purbeck Civil Engineering Limited
Central Services to the Public,Management & Support Services,IT,Supplies & Services,Communications & Computing,Software Maintenance,29/10/2015,167523,6967.3,Phoenix Software Ltd
Central Services to the Public,Elections,Legal & Democratic,Supplies & Services,Miscellaneous Expenses,Election Fees,21/10/2015,166918,8575.45,The Returning Officer
Central Services to the Public,Management & Support Services,Estates and Economic Development ,Third Party Payments,Other Establishments,Private Contractors,29/10/2015,167371,7598.6,Temple Lifts Ltd
Central Services to the Public,Local Tax Collection,Revenues,Supplies & Services,Communications & Computing,Software Maintenance,29/10/2015,167362,760.88,Northgate Public Services Uk Ltd
Central Services to the Public,Local Tax Collection,Revenues,Supplies & Services,Communications & Computing,Software Maintenance,29/10/2015,167362,3043.52,Northgate Public Services Uk Ltd
Housing Services,Housing Benefits ,Revenues,Supplies & Services,Communications & Computing,Software Maintenance,29/10/2015,167362,1902.21,Northgate Public Services Uk Ltd
Central Services to the Public,Local Tax Collection,Revenues,Supplies & Services,Communications & Computing,Software Maintenance,29/10/2015,167362,1902.2,Northgate Public Services Uk Ltd
Cultural & Related,Recreation & Sport,Community and Leisure ,Supplies & Services,Grants and subscriptions,Capital Grants,01/10/2015,165506,9284.17,Braishfield Village Hall Management Committee
Cultural & Related,Open Spaces,Community and Leisure ,Premises related Expenditure,Repairs Alterations & Maintenance of Buildings,Estates premises costs - AMP,29/10/2015,165735,7886,Rocon Contractors Ltd
Cultural & Related,Open Spaces,Community and Leisure ,Premises related Expenditure,Grounds Maintenance Costs,Non Contract Tree Works,29/10/2015,166180,126.02,Gristwood & Toms Ltd
Cultural & Related,Open Spaces,Community and Leisure ,Premises related Expenditure,Grounds Maintenance Costs,Non Contract Tree Works,29/10/2015,166180,8087.5,Gristwood & Toms Ltd
Cultural & Related,Recreation & Sport,Community and Leisure ,Premises related Expenditure,Grounds Maintenance Costs,Gm - Additional Works,15/10/2015,166123,10000,Halliday Lighting
Central Services to the Public,Management & Support Services,Estates and Economic Development ,Third Party Payments,Other Establishments,Private Contractors,01/10/2015,165307,9148,Aztec Fencing Ltd
Cultural & Related,Recreation & Sport,Community and Leisure ,Supplies & Services,Grants and subscriptions,Capital Grants,01/10/2015,165504,11500,Chilworth Village Hall Management Committee
Central Services to the Public,Management & Support Services,Estates and Economic Development ,Third Party Payments,Other Establishments,Private Contractors,15/10/2015,166359,9907.6,Temple Lifts Ltd
Environmental & Regulatory,Waste management,Environmental,Supplies & Services,"Equipment, Furniture & Materials",Purchase Equip + Materials,15/10/2015,166201,10010,Mgb Plastics Ltd
Environmental & Regulatory,Waste management,Environmental,Supplies & Services,"Equipment, Furniture & Materials",Purchase Equip + Materials,22/10/2015,166523,10010,Mgb Plastics Ltd
Cultural & Related,Recreation & Sport,Community and Leisure ,Supplies & Services,Grants and subscriptions,Capital Grants,22/10/2015,167032,12500,Stockbridge Parish Council
Central Services to the Public,Management & Support Services,Estates and Economic Development ,Third Party Payments,Other Establishments,Private Contractors,15/10/2015,165813,10731.29,Rocon Contractors Ltd
Central Services to the Public,Management & Support Services,Estates and Economic Development ,Third Party Payments,Other Establishments,Private Contractors,01/10/2015,164905,11536,Doorgear Limited
Central Services to the Public,Management & Support Services,Estates and Economic Development ,Supplies & Services,Services,Professional Fees,29/10/2015,167396,12211.41,Kier Ventures Ltd
Planning & Development,Development Control,Planning & Building,Supplies & Services,Miscellaneous Expenses,Planning Appeal Costs,15/10/2015,166358,12226.67,Propernomics Ltd
Central Services to the Public,Elections,Legal & Democratic,Supplies & Services,"Printing, Stationery & General Office Expenses",External Printing,22/10/2015,166762,12322.81,Financial Data Management Plc
Central Services to the Public,Management & Support Services,Environmental,Transport Related Expenditure,Direct Transport Costs,Vehicles and Plant,22/10/2015,165711,13495,T H White Ltd
Cultural & Related,Recreation & Sport,Community and Leisure ,Third Party Payments,Private contractors,Main Contractor Costs,08/10/2015,159846,13937.69,Jla Ltd
Environmental & Regulatory,Regulatory Services,Housing and Environmental Health ,Supplies & Services,Grants and subscriptions,Capital Grants,29/10/2015,167514,17987.52,Arun Projects Ltd
Central Services to the Public,Management & Support Services,Estates and Economic Development ,Third Party Payments,Other Establishments,Private Contractors,15/10/2015,166362,17253.9,Temple Lifts Ltd
Central Services to the Public,Management & Support Services,Finance,Employees,Direct Employee Expenses,Shared service staffing costs,29/10/2015,166788,17359.65,Gosport Borough Council
Central Services to the Public,Elections,Legal & Democratic,Supplies & Services,Miscellaneous Expenses,Election Fees,29/10/2015,166809,23906.42,Basingstoke & Deane Borough Council
Environmental & Regulatory,Regulatory Services,Housing and Environmental Health ,Supplies & Services,Grants and subscriptions,Capital Grants,01/10/2015,165501,24523.5,Westgate Construction (Hertford) Ltd
Cultural & Related,Recreation & Sport,Community and Leisure ,Premises related Expenditure,Repairs Alterations & Maintenance of Buildings,Estates premises costs - AMP,01/10/2015,164797,32358,Proludic Ltd
Cultural & Related,Recreation & Sport,Community and Leisure ,Third Party Payments,Other Establishments,ALC Management Contract-TVL,15/10/2015,165299,33166.67,Valley Leisure Ltd
Central Services to the Public,Management & Support Services,Plan Pol & Transport,Premises related Expenditure,Repairs Alterations & Maintenance of Buildings,General Repairs,01/10/2015,164272,34019.36,Volker Highways Ltd
Cultural & Related,Recreation & Sport,Community and Leisure ,Premises related Expenditure,Repairs Alterations & Maintenance of Buildings,Estates premises costs - AMP,22/10/2015,162470,37604,Proludic Ltd
Cultural & Related,Recreation & Sport,Community and Leisure ,Supplies & Services,"Equipment, Furniture & Materials",Purchase Equip + Materials,22/10/2015,162470,2972,Proludic Ltd
Central Services to the Public,Management & Support Services,Legal & Democratic,Employees,Indirect Employee Expenses,Advertising Of Vacancies,29/10/2015,166112,420,Hampshire County Council
Central Services to the Public,Management & Support Services,HR Services,Third Party Payments,Other Local Authorities,Shared Service Contract Costs,29/10/2015,166112,28790.29,Hampshire County Council
Central Services to the Public,Management & Support Services,Finance,Employees,Indirect Employee Expenses,Advertising Of Vacancies,29/10/2015,166112,2207.62,Hampshire County Council
Planning & Development,Development Control,Planning & Building,Employees,Indirect Employee Expenses,Advertising Of Vacancies,29/10/2015,166112,3830.82,Hampshire County Council
Cultural & Related,Open Spaces,Environmental,Employees,Indirect Employee Expenses,Advertising Of Vacancies,29/10/2015,166112,7095,Hampshire County Council
Planning & Development,Community Development,Community and Leisure ,Supplies & Services,Grants & Subscriptions,Grants,29/10/2015,167513,110974,Test Valley Cab
